[Event "EYTCC U18 Girls 2019"]
[Site "Pardubice"]
[Date "2019.07.11"]
[Round "1.41"]
[White "Stroganova, Karina"]
[Black "Tarasenka, Aliaksandra"]
[Result "0-1"]
[ECO "A45"]
[WhiteElo "1875"]
[BlackElo "2231"]
[Annotator "NA"]
[PlyCount "128"]
[EventDate "2019.07.11"]
[EventType "swiss"]
[EventCountry "CZE"]
[SourceTitle "playchess.com"]
[Source "ChessBase"]
[SourceQuality "1"]
[WhiteTeam "Russia"]
[BlackTeam "Belarus"]
[WhiteTeamCountry "RUS"]
[BlackTeamCountry "BLR"]
[TimeControl "40/5400+30:1800+30"]

1. d4 {[%emt 0:00:00]} Nf6 {[%emt 0:00:03]} 2. Bf4 {[%emt 0:00:05]} b6 {[%emt 0:00:57]} 3. e3 {[%emt 0:00:46]} Bb7 {[%emt 0:00:14]} 4. Nf3 {[%emt 0:01:06]} d6 {[%emt 0:00:38]} 5. a4 {[%emt 0:01:19]} a5 {[%emt 0:05:25]} 6. Nbd2 {[%emt 0:03:56]} g6 {[%emt 0:01:18]} 7. h3 {[%emt 0:05:14]} Bg7 {[%emt 0:00:42]} 8. Be2 {[%emt 0:03:47]} O-O {[%emt 0:01:01]} 9. O-O {[%emt 0:01:07]} Nbd7 {[%emt 0:02:48]} 10. Nc4 {[%emt 0:15:48]} Re8 {[%emt 0:04:04]} 11. Bh2 {[%emt 0:00:57]} Ne4 {[%emt 0:04:08]} 12. c3 {[%emt 0:04:13]} e5 {[%emt 0:03:25]} 13. dxe5 {[%emt 0:02:26]} dxe5 {[%emt 0:04:05]} 14. Qc2 {[%emt 0:01:45]} Qe7 {[%emt 0:03:36]} 15. Rad1 {[%emt 0:02:19]} Rad8 {[%emt 0:01:35]} 16. Nfd2 {[%emt 0:04:36]} f5 {[%emt 0:06:37]} 17. Bf3 {[%emt 0:03:52]} Nxd2 {[%emt 0:04:58]} 18. Nxd2 {[%emt 0:02:30]} e4 {[%emt 0:03:57]} 19. Be2 {[%emt 0:01:15]} Nc5 {[%emt 0:02:33]} 20. Nc4 {[%emt 0:10:03]} Bc6 {[%emt 0:09:12]} 21. b3 {[%emt 0:01:43]} Bd5 {[%emt 0:11:04]} 22. Rd2 {[%emt 0:02:49]} Nd3 {[%emt 0:09:10]} 23. Rfd1 {[%emt 0:02:05]} Bxc4 {[%emt 0:04:57]} 24. bxc4 {[%emt 0:00:24]} Nc5 {[%emt 0:02:56]} 25. Rd5 {[%emt 0:05:16]} Rc8 {[%emt 0:01:24]} 26. Bg3 {[%emt 0:06:38]} Qf6 {[%emt 0:02:45]} 27. Rc1 {[%emt 0:00:48]} Qc6 {[%emt 0:00:40]} 28. Ra1 {[%emt 0:01:47]} Red8 {[%emt 0:01:38]} 29. Rdd1 {[%emt 0:07:34]} Rd7 {[%emt 0:03:38]} 30. Rxd7 {[%emt 0:01:32]} Qxd7 {[%emt 0:00:15]} 31. Kh2 {[%emt 0:00:28]} Qe8 {[%emt 0:02:03]} 32. Bf4 {[%emt 0:04:28]} Be5 {[%emt 0:00:57]} 33. Bxe5 {[%emt 0:00:10]} Qxe5+ {[%emt 0:00:04]} 34. Kg1 {[%emt 0:00:15]} Rd8 {[%emt 0:01:45]} 35. Rd1 {[%emt 0:00:19]} Rxd1+ {[%emt 0:00:56]} 36. Qxd1 {[%emt 0:00:18]} Qd6 {[%emt 0:00:53]} 37. Kf1 {[%emt 0:03:57]} Qxd1+ {[%emt 0:00:58]} 38. Bxd1 {[%emt 0:00:06]} Kf7 {[%emt 0:00:17]} 39. Ke2 {[%emt 0:00:19]} Ke6 {[%emt 0:00:22]} 40. f3 {[%emt 0:01:08]} Kd6 {[%emt 0:00:23]} 41. Bc2 {[%emt 0:04:08]} Kc6 {[%emt 0:02:06]} 42. Kd2 {[%emt 0:03:18]} exf3 {[%emt 0:03:51]} 43. gxf3 {[%emt 0:00:34]} Nd7 {[%emt 0:01:14]} 44. f4 {[%emt 0:03:02]} Kc5 {[%emt 0:06:29]} 45. Bd3 {[%emt 0:02:25]} Nf6 {[%emt 0:01:01]} 46. Bf1 {[%emt 0:01:00]} Ne4+ {[%emt 0:01:20]} 47. Kc2 {[%emt 0:00:45]} h6 {[%emt 0:02:14]} 48. h4 {[%emt 0:02:49]} Kd6 {[%emt 0:08:12]} 49. Bg2 {[%emt 0:01:23]} c6 {[%emt 0:01:45]} 50. Bh3 {[%emt 0:03:31]} h5 {[%emt 0:03:45]} 51. Bg2 {[%emt 0:02:44]} Nc5 {[%emt 0:01:17]} 52. Bf3 {[%emt 0:00:29]} Nxa4 {[%emt 0:03:17]} 53. e4 {[%emt 0:01:20]} Ke6 {[%emt 0:00:11]} 54. e5 {[%emt 0:05:56]} Kd7 {[%emt 0:00:08]} 55. e6+ {[%emt 0:02:58]} Kxe6 {[%emt 0:00:06]} 56. Bxc6 {[%emt 0:00:06]} Nc5 {[%emt 0:00:15]} 57. Kb2 {[%emt 0:01:02]} Nd3+ {[%emt 0:00:17]} 58. Kb3 {[%emt 0:00:17]} Nxf4 {[%emt 0:00:08]} 59. Ka4 {[%emt 0:00:04]} Kd6 {[%emt 0:01:04]} 60. Kb5 {[%emt 0:00:22]} a4 {[%emt 0:01:13]} 61. Kxb6 {[%emt 0:01:44]} a3 {[%emt 0:00:07]} 62. c5+ {[%emt 0:00:18]} Ke7 {[%emt 0:00:10]} 63. Bb7 {[%emt 0:00:45]} a2 {[%emt 0:00:11]} 64. c6 {[%emt 0:00:10]} Nd5+ {[%emt 0:00:06]} 0-1

[Event "EYTCC U18 Girls 2019"]
[Site "Pardubice"]
[Date "2019.07.12"]
[Round "2.25"]
[White "Salimova, Nurgyul"]
[Black "Radeva, Viktoria"]
[Result "1-0"]
[ECO "E09"]
[WhiteElo "2416"]
[BlackElo "2247"]
[Annotator "NA"]
[PlyCount "131"]
[EventDate "2019.07.11"]
[EventType "swiss"]
[EventCountry "CZE"]
[SourceTitle "playchess.com"]
[Source "ChessBase"]
[SourceQuality "1"]
[WhiteTeam "Bulgaria"]
[BlackTeam "Bulgaria"]
[WhiteTeamCountry "BUL"]
[BlackTeamCountry "BUL"]
[TimeControl "40/5400+30:1800+30"]

1. Nf3 {[%emt 0:00:00]} d5 {[%emt 0:00:00]} 2. c4 {[%emt 0:00:00]} e6 {[%emt 0:00:00]} 3. g3 {[%emt 0:00:01]} Nf6 {[%emt 0:00:00]} 4. Bg2 {[%emt 0:00:15]} c6 {[%emt 0:00:15]} 5. Qc2 {[%emt 0:00:27]} Be7 {[%emt 0:03:20]} 6. O-O {[%emt 0:00:19]} O-O {[%emt 0:00:27]} 7. d4 {[%emt 0:00:32]} Nbd7 {[%emt 0:00:39]} 8. Nbd2 {[%emt 0:00:44]} b6 {[%emt 0:00:17]} 9. e4 {[%emt 0:01:08]} dxc4 {[%emt 0:00:21]} 10. Nxc4 {[%emt 0:00:44]} Bb7 {[%emt 0:00:08]} 11. e5 {[%emt 0:25:22]} Nd5 {[%emt 0:00:57]} 12. h4 {[%emt 0:00:15]} h6 {[%emt 0:11:30]} 13. a3 {[%emt 0:02:53]} c5 {[%emt 0:05:38]} 14. dxc5 {[%emt 0:01:12]} Nxc5 {[%emt 0:00:15]} 15. b4 {[%emt 0:00:28]} Nd7 {[%emt 0:02:46]} 16. Bb2 {[%emt 0:13:42]} Rc8 {[%emt 0:07:18]} 17. Qe2 {[%emt 0:04:11]} Qc7 {[%emt 0:09:47]} 18. Rfc1 {[%emt 0:02:36]} Qb8 {[%emt 0:00:29]} 19. Nfd2 {[%emt 0:09:37]} Rfd8 {[%emt 0:13:55]} 20. Kh2 {[%emt 0:11:07]} Nf8 {[%emt 0:09:09]} 21. b5 {[%emt 0:03:39]} Bxh4 {[%emt 0:25:18]} 22. gxh4 {[%emt 0:13:57]} Nf4 {[%emt 0:00:03]} 23. Qg4 {[%emt 0:00:11]} Nxg2 {[%emt 0:00:21]} 24. Ne4 {[%emt 0:02:33]} f5 {[%emt 0:01:44]} 25. Qxg2 {[%emt 0:00:50]} Bxe4 {[%emt 0:00:54]} 26. f3 {[%emt 0:01:57]} Bxf3 {[%emt 0:03:36]} 27. Qxf3 {[%emt 0:00:05]} Rxc4 {[%emt 0:00:04]} 28. Rxc4 {[%emt 0:00:44]} Rd2+ {[%emt 0:00:04]} 29. Kh3 {[%emt 0:01:21]} Rxb2 {[%emt 0:00:06]} 30. Qg3 {[%emt 0:01:43]} Rxb5 {[%emt 0:00:57]} 31. Rg1 {[%emt 0:01:03]} Qxe5 {[%emt 0:04:15]} 32. Rc7 {[%emt 0:01:24]} Rb3 {[%emt 0:00:28]} 33. Qxb3 {[%emt 0:00:28]} Qxc7 {[%emt 0:00:01]} 34. Qb2 {[%emt 0:00:34]} e5 {[%emt 0:01:11]} 35. Rc1 {[%emt 0:00:34]} Qd6 {[%emt 0:00:22]} 36. Qb3+ {[%emt 0:00:10]} Kh7 {[%emt 0:00:49]} 37. Qf3 {[%emt 0:00:32]} Qd7 {[%emt 0:00:24]} 38. Rd1 {[%emt 0:00:10]} Qe6 {[%emt 0:00:25]} 39. Rf1 {[%emt 0:00:22]} f4+ {[%emt 0:00:15]} 40. Qg4 {[%emt 0:00:33]} Qxg4+ {[%emt 0:00:55]} 41. Kxg4 {[%emt 0:30:02]} Kg6 {[%emt 0:30:10]} 42. h5+ {[%emt 0:01:40]} Kf6 {[%emt 0:00:04]} 43. Rd1 {[%emt 0:00:00]} Ne6 {[%emt 0:00:00]} 44. Rd5 {[%emt 0:00:00]} e4 {[%emt 0:00:00]} 45. Rf5+ {[%emt 0:00:00]} Ke7 {[%emt 0:00:00]} 46. Re5 {[%emt 0:00:00]} f3 {[%emt 0:00:00]} 47. Kg3 {[%emt 0:00:00]} Kd6 {[%emt 0:00:00]} 48. Rxe4 {[%emt 0:00:00]} Ng5 {[%emt 0:00:00]} 49. Re8 {[%emt 0:00:00]} a5 {[%emt 0:00:00]} 50. Rg8 {[%emt 0:00:00]} Ne6 {[%emt 0:00:00]} 51. Kxf3 {[%emt 0:00:00]} Kd5 {[%emt 0:00:00]} 52. Rb8 {[%emt 0:00:00]} Kc5 {[%emt 0:04:13]} 53. Ke4 {[%emt 0:00:00]} Nd4 {[%emt 0:01:57]} 54. Rc8+ {[%emt 0:00:00]} Nc6 {[%emt 0:00:04]} 55. Rc7 {[%emt 0:00:00]} b5 {[%emt 0:00:11]} 56. Rxg7 {[%emt 0:00:00]} a4 {[%emt 0:00:59]} 57. Rh7 {[%emt 0:00:00]} b4 {[%emt 0:00:03]} 58. axb4+ {[%emt 0:00:00]} Nxb4 {[%emt 0:00:09]} 59. Rxh6 {[%emt 0:00:00]} a3 {[%emt 0:00:07]} 60. Rg6 {[%emt 0:00:18]} a2 {[%emt 0:00:47]} 61. Rg1 {[%emt 0:02:57]} Nd5 {[%emt 0:00:15]} 62. Ke5 {[%emt 0:01:14]} Nc3 {[%emt 0:01:48]} 63. Ra1 {[%emt 0:00:19]} Kb4 {[%emt 0:00:20]} 64. h6 {[%emt 0:00:11]} Kb3 {[%emt 0:00:01]} 65. h7 {[%emt 0:00:09]} Kb2 {[%emt 0:00:12]} 66. Rxa2+ {[%emt 0:00:06]} 1-0

[Event "EYTCC U18 Girls 2019"]
[Site "Pardubice"]
[Date "2019.07.12"]
[Round "2.26"]
[White "Krasteva, Beloslava"]
[Black "Antova, Gabriela"]
[Result "1/2-1/2"]
[ECO "D20"]
[WhiteElo "2327"]
[BlackElo "2257"]
[Annotator "NA"]
[PlyCount "80"]
[EventDate "2019.07.11"]
[EventType "swiss"]
[EventCountry "CZE"]
[SourceTitle "playchess.com"]
[Source "ChessBase"]
[SourceQuality "1"]
[WhiteTeam "Bulgaria"]
[BlackTeam "Bulgaria"]
[WhiteTeamCountry "BUL"]
[BlackTeamCountry "BUL"]
[TimeControl "40/5400+30:1800+30"]

1. d4 {[%emt 0:00:00]} d5 {[%emt 0:00:00]} 2. c4 {[%emt 0:00:01]} dxc4 {[%emt 0:00:00]} 3. e3 {[%emt 0:00:27]} e5 {[%emt 0:00:00]} 4. Bxc4 {[%emt 0:00:23]} Nc6 {[%emt 0:00:26]} 5. Qb3 {[%emt 0:07:29]} Qd7 {[%emt 0:34:11]} 6. dxe5 {[%emt 0:07:18]} Nxe5 {[%emt 0:00:42]} 7. Be2 {[%emt 0:01:49]} Nf6 {[%emt 0:07:32]} 8. Nf3 {[%emt 0:03:44]} Bd6 {[%emt 0:00:51]} 9. O-O {[%emt 0:02:33]} O-O {[%emt 0:02:28]} 10. Nc3 {[%emt 0:04:16]} a6 {[%emt 0:04:07]} 11. Nxe5 {[%emt 0:22:54]} Bxe5 {[%emt 0:00:02]} 12. f4 {[%emt 0:00:47]} Bxc3 {[%emt 0:10:26]} 13. Qxc3 {[%emt 0:03:27]} Ne4 {[%emt 0:03:15]} 14. Qc2 {[%emt 0:02:02]} Qe7 {[%emt 0:01:36]} 15. b3 {[%emt 0:02:15]} b6 {[%emt 0:02:32]} 16. Bb2 {[%emt 0:01:56]} Bb7 {[%emt 0:01:06]} 17. Be5 {[%emt 0:02:00]} c5 {[%emt 0:03:05]} 18. Bf3 {[%emt 0:07:15]} f5 {[%emt 0:00:44]} 19. g4 {[%emt 0:02:10]} Rad8 {[%emt 0:05:45]} 20. Rad1 {[%emt 0:03:18]} Qf7 {[%emt 0:01:02]} 21. gxf5 {[%emt 0:04:15]} Qxf5 {[%emt 0:01:46]} 22. Qg2 {[%emt 0:01:02]} Qg6 {[%emt 0:03:48]} 23. Qxg6 {[%emt 0:02:18]} hxg6 {[%emt 0:00:02]} 24. Rxd8 {[%emt 0:06:48]} Rxd8 {[%emt 0:00:01]} 25. Rd1 {[%emt 0:00:09]} Rxd1+ {[%emt 0:01:08]} 26. Bxd1 {[%emt 0:00:01]} g5 {[%emt 0:01:57]} 27. Be2 {[%emt 0:05:27]} gxf4 {[%emt 0:01:13]} 28. exf4 {[%emt 0:00:31]} b5 {[%emt 0:00:49]} 29. Kf1 {[%emt 0:02:45]} Kf7 {[%emt 0:02:02]} 30. Ke1 {[%emt 0:01:09]} g6 {[%emt 0:04:10]} 31. Kd1 {[%emt 0:02:21]} Bd5 {[%emt 0:02:34]} 32. Kc2 {[%emt 0:00:31]} c4 {[%emt 0:01:45]} 33. b4 {[%emt 0:00:49]} Be6 {[%emt 0:02:14]} 34. h4 {[%emt 0:01:08]} Bf5 {[%emt 0:01:17]} 35. Kc1 {[%emt 0:00:15]} Ng3 {[%emt 0:01:17]} 36. Bf3 {[%emt 0:00:28]} Be4 {[%emt 0:00:09]} 37. Bg4 {[%emt 0:00:36]} Bf5 {[%emt 0:00:10]} 38. Bf3 {[%emt 0:00:10]} Be4 {[%emt 0:00:04]} 39. Bg4 {[%emt 0:00:19]} Bf5 {[%emt 0:01:04]} 40. Bf3 {[%emt 0:01:10]} Be4 {[%emt 0:01:26]} 1/2-1/2

[Event "EYTCC U18 Girls 2019"]
[Site "Pardubice"]
[Date "2019.07.12"]
[Round "2.27"]
[White "Tarasenka, Aliaksandra"]
[Black "Muetsch, Annmarie"]
[Result "1/2-1/2"]
[ECO "E78"]
[WhiteElo "2231"]
[BlackElo "2266"]
[Annotator "NA"]
[PlyCount "113"]
[EventDate "2019.07.11"]
[EventType "swiss"]
[EventCountry "CZE"]
[SourceTitle "playchess.com"]
[Source "ChessBase"]
[SourceQuality "1"]
[WhiteTeam "Belarus"]
[BlackTeam "Germany"]
[WhiteTeamCountry "BLR"]
[BlackTeamCountry "GER"]
[TimeControl "40/5400+30:1800+30"]

1. c4 {[%emt 0:00:00]} Nf6 {[%emt 0:00:00]} 2. d4 {[%emt 0:00:00]} g6 {[%emt 0:00:00]} 3. Nc3 {[%emt 0:00:00]} Bg7 {[%emt 0:00:00]} 4. e4 {[%emt 0:00:00]} d6 {[%emt 0:00:01]} 5. Be2 {[%emt 0:00:00]} O-O {[%emt 0:00:09]} 6. f4 {[%emt 0:00:03]} c5 {[%emt 0:00:25]} 7. Nf3 {[%emt 0:00:06]} cxd4 {[%emt 0:04:09]} 8. Nxd4 {[%emt 0:00:04]} Bd7 {[%emt 0:01:20]} 9. Be3 {[%emt 0:01:58]} Nc6 {[%emt 0:00:44]} 10. O-O {[%emt 0:01:25]} Nxd4 {[%emt 0:03:15]} 11. Bxd4 {[%emt 0:00:08]} Bc6 {[%emt 0:00:08]} 12. Bf3 {[%emt 0:00:15]} a5 {[%emt 0:00:40]} 13. Qe2 {[%emt 0:07:30]} Nd7 {[%emt 0:04:31]} 14. Bxg7 {[%emt 0:03:13]} Kxg7 {[%emt 0:00:06]} 15. Rad1 {[%emt 0:01:43]} Qb6+ {[%emt 0:06:55]} 16. Kh1 {[%emt 0:01:42]} Qc5 {[%emt 0:02:02]} 17. Nd5 {[%emt 0:07:37]} Bxd5 {[%emt 0:12:03]} 18. Rxd5 {[%emt 0:05:16]} Qc7 {[%emt 0:03:05]} 19. e5 {[%emt 0:04:05]} dxe5 {[%emt 0:06:55]} 20. Rfd1 {[%emt 0:18:34]} Nb6 {[%emt 0:08:47]} 21. Rxe5 {[%emt 0:16:20]} Qxc4 {[%emt 0:04:46]} 22. Rb5 {[%emt 0:17:12]} Qxe2 {[%emt 0:06:14]} 23. Bxe2 {[%emt 0:00:05]} Nc8 {[%emt 0:00:10]} 24. Rxb7 {[%emt 0:01:21]} Nd6 {[%emt 0:00:21]} 25. Rxe7 {[%emt 0:02:56]} Nf5 {[%emt 0:01:51]} 26. Re5 {[%emt 0:01:45]} f6 {[%emt 0:07:12]} 27. Rb5 {[%emt 0:02:13]} Rad8 {[%emt 0:04:21]} 28. Kg1 {[%emt 0:04:29]} Rxd1+ {[%emt 0:03:36]} 29. Bxd1 {[%emt 0:00:03]} Rd8 {[%emt 0:00:10]} 30. Bf3 {[%emt 0:01:50]} Rd2 {[%emt 0:01:11]} 31. Rxa5 {[%emt 0:01:27]} Rxb2 {[%emt 0:00:07]} 32. a4 {[%emt 0:00:52]} Nd4 {[%emt 0:00:57]} 33. Ra7+ {[%emt 0:00:57]} Kh8 {[%emt 0:03:53]} 34. a5 {[%emt 0:00:50]} Nxf3+ {[%emt 0:05:01]} 35. gxf3 {[%emt 0:00:03]} Ra2 {[%emt 0:00:07]} 36. a6 {[%emt 0:00:18]} Kg8 {[%emt 0:01:59]} 37. Kf1 {[%emt 0:00:45]} Kf8 {[%emt 0:04:49]} 38. Ke1 {[%emt 0:00:48]} Ke8 {[%emt 0:00:43]} 39. Ra8+ {[%emt 0:00:45]} Kf7 {[%emt 0:02:29]} 40. a7 {[%emt 0:00:40]} Kg7 {[%emt 0:00:09]} 41. Kd1 {[%emt 0:30:32]} f5 {[%emt 0:30:55]} 42. Kc1 {[%emt 0:00:28]} Ra5 {[%emt 0:00:32]} 43. Kb2 {[%emt 0:00:00]} Ra6 {[%emt 0:00:00]} 44. Kc3 {[%emt 0:00:00]} Ra1 {[%emt 0:00:00]} 45. Kb3 {[%emt 0:00:00]} Ra6 {[%emt 0:00:00]} 46. h4 {[%emt 0:00:00]} h5 {[%emt 0:00:00]} 47. Kc4 {[%emt 0:00:00]} Ra1 {[%emt 0:00:00]} 48. Kd4 {[%emt 0:00:00]} Rd1+ {[%emt 0:00:00]} 49. Kc3 {[%emt 0:00:00]} Ra1 {[%emt 0:00:00]} 50. Kb3 {[%emt 0:00:00]} Ra6 {[%emt 0:00:00]} 51. Kb4 {[%emt 0:00:00]} Ra1 {[%emt 0:00:00]} 52. Kb5 {[%emt 0:00:00]} Rb1+ {[%emt 0:00:00]} 53. Kc5 {[%emt 0:00:00]} Rc1+ {[%emt 0:00:00]} 54. Kd4 {[%emt 0:00:00]} Ra1 {[%emt 0:00:00]} 55. Kc3 {[%emt 0:00:00]} Ra6 {[%emt 0:00:00]} 56. Kd4 {[%emt 0:01:08]} Ra1 {[%emt 0:00:00]} 57. Kc3 {[%emt 0:00:30]} 1/2-1/2

[Event "EYTCC U18 Girls 2019"]
[Site "Pardubice"]
[Date "2019.07.12"]
[Round "2.28"]
[White "Schneider, Jana"]
[Black "Kuzich, Aryna"]
[Result "1-0"]
[ECO "B20"]
[WhiteElo "2216"]
[BlackElo "1902"]
[Annotator "NA"]
[PlyCount "107"]
[EventDate "2019.07.11"]
[EventType "swiss"]
[EventCountry "CZE"]
[SourceTitle "playchess.com"]
[Source "ChessBase"]
[SourceQuality "1"]
[WhiteTeam "Germany"]
[BlackTeam "Belarus"]
[WhiteTeamCountry "GER"]
[BlackTeamCountry "BLR"]
[TimeControl "40/5400+30:1800+30"]

1. e4 {[%emt 0:00:00]} c5 {[%emt 0:00:00]} 2. c4 {[%emt 0:00:00]} d6 {[%emt 0:04:54]} 3. Nf3 {[%emt 0:00:00]} Nf6 {[%emt 0:01:19]} 4. Nc3 {[%emt 0:00:08]} g6 {[%emt 0:01:16]} 5. d4 {[%emt 0:00:15]} cxd4 {[%emt 0:00:20]} 6. Nxd4 {[%emt 0:00:07]} Bg7 {[%emt 0:00:42]} 7. Be2 {[%emt 0:00:20]} O-O {[%emt 0:02:00]} 8. Be3 {[%emt 0:00:19]} Nc6 {[%emt 0:02:49]} 9. f3 {[%emt 0:00:38]} Bd7 {[%emt 0:07:33]} 10. Qd2 {[%emt 0:00:19]} Re8 {[%emt 0:03:38]} 11. O-O {[%emt 0:02:01]} Rc8 {[%emt 0:02:57]} 12. Rac1 {[%emt 0:01:28]} Ne5 {[%emt 0:03:14]} 13. b3 {[%emt 0:01:21]} Qa5 {[%emt 0:06:20]} 14. Rfd1 {[%emt 0:02:51]} h5 {[%emt 0:14:12]} 15. Kh1 {[%emt 0:05:34]} Kh7 {[%emt 0:04:21]} 16. h3 {[%emt 0:09:59]} Nc6 {[%emt 0:06:34]} 17. Nc2 {[%emt 0:15:01]} Ng8 {[%emt 0:19:22]} 18. Ne1 {[%emt 0:01:43]} Rcd8 {[%emt 0:03:07]} 19. f4 {[%emt 0:07:28]} f5 {[%emt 0:03:13]} 20. Nf3 {[%emt 0:00:58]} Bf6 {[%emt 0:01:54]} 21. Bd3 {[%emt 0:11:06]} e6 {[%emt 0:04:43]} 22. Nb5 {[%emt 0:02:19]} Qxd2 {[%emt 0:00:51]} 23. Rxd2 {[%emt 0:00:12]} fxe4 {[%emt 0:00:47]} 24. Bxe4 {[%emt 0:01:01]} d5 {[%emt 0:00:28]} 25. Bb1 {[%emt 0:02:49]} Bc8 {[%emt 0:02:16]} 26. Nxa7 {[%emt 0:03:20]} Nxa7 {[%emt 0:02:15]} 27. Bxa7 {[%emt 0:00:07]} dxc4 {[%emt 0:01:09]} 28. Rxc4 {[%emt 0:02:58]} Rxd2 {[%emt 0:00:16]} 29. Nxd2 {[%emt 0:00:03]} e5 {[%emt 0:00:55]} 30. Rc7+ {[%emt 0:01:18]} Kh6 {[%emt 0:00:54]} 31. fxe5 {[%emt 0:01:21]} Bg5 {[%emt 0:00:37]} 32. Nf3 {[%emt 0:00:43]} b6 {[%emt 0:00:27]} 33. Bxb6 {[%emt 0:00:29]} Bf4 {[%emt 0:00:30]} 34. g3 {[%emt 0:02:06]} Bxh3 {[%emt 0:00:26]} 35. gxf4 {[%emt 0:00:18]} Bg4 {[%emt 0:00:10]} 36. Ng5 {[%emt 0:00:33]} Re7 {[%emt 0:00:54]} 37. Rxe7 {[%emt 0:00:19]} Nxe7 {[%emt 0:00:05]} 38. Bc5 {[%emt 0:00:09]} Nf5 {[%emt 0:00:23]} 39. Bf8+ {[%emt 0:00:16]} Ng7 {[%emt 0:00:03]} 40. e6 {[%emt 0:00:13]} Be2 {[%emt 0:00:35]} 41. e7 {[%emt 0:30:19]} Bb5 {[%emt 0:30:07]} 42. Ne6 {[%emt 0:00:19]} Bc6+ {[%emt 0:00:31]} 43. Kh2 {[%emt 0:00:07]} h4 {[%emt 0:00:23]} 44. Nxg7 {[%emt 0:00:36]} h3 {[%emt 0:00:18]} 45. e8=Q {[%emt 0:00:59]} Bxe8 {[%emt 0:00:07]} 46. Nxe8+ {[%emt 0:00:03]} Kh7 {[%emt 0:00:13]} 47. Bd6 {[%emt 0:00:52]} Kh6 {[%emt 0:00:31]} 48. a4 {[%emt 0:00:31]} Kh7 {[%emt 0:00:14]} 49. a5 {[%emt 0:00:10]} Kh6 {[%emt 0:00:08]} 50. a6 {[%emt 0:00:05]} Kh7 {[%emt 0:00:04]} 51. a7 {[%emt 0:00:05]} Kh6 {[%emt 0:00:07]} 52. a8=Q {[%emt 0:00:09]} Kh7 {[%emt 0:00:09]} 53. Nf6+ {[%emt 0:00:43]} Kg7 {[%emt 0:00:07]} 54. Qf8# {[%emt 0:00:07]} 1-0

[Event "EYTCC U18 Girls 2019"]
[Site "Pardubice"]
[Date "2019.07.12"]
[Round "2.29"]
[White "Lehaci, Miruna-Daria"]
[Black "Sahin, Hayrun Nisa"]
[Result "0-1"]
[ECO "B76"]
[WhiteElo "2201"]
[BlackElo "1772"]
[Annotator "NA"]
[PlyCount "108"]
[EventDate "2019.07.11"]
[EventType "swiss"]
[EventCountry "CZE"]
[SourceTitle "playchess.com"]
[Source "ChessBase"]
[SourceQuality "1"]
[WhiteTeam "Romania"]
[BlackTeam "Turkey"]
[WhiteTeamCountry "ROU"]
[BlackTeamCountry "TUR"]
[TimeControl "40/5400+30:1800+30"]

1. e4 {[%emt 0:00:00]} c5 {[%emt 0:00:06]} 2. Nf3 {[%emt 0:00:00]} d6 {[%emt 0:00:14]} 3. d4 {[%emt 0:00:00]} cxd4 {[%emt 0:00:03]} 4. Nxd4 {[%emt 0:00:00]} Nf6 {[%emt 0:00:50]} 5. Nc3 {[%emt 0:00:00]} g6 {[%emt 0:00:04]} 6. Be3 {[%emt 0:00:00]} Bg7 {[%emt 0:00:26]} 7. f3 {[%emt 0:00:00]} O-O {[%emt 0:00:17]} 8. g4 {[%emt 0:01:11]} Bd7 {[%emt 0:00:14]} 9. Qd2 {[%emt 0:00:16]} Nc6 {[%emt 0:00:06]} 10. O-O-O {[%emt 0:00:13]} Rc8 {[%emt 0:00:29]} 11. h4 {[%emt 0:00:55]} Ne5 {[%emt 0:00:21]} 12. Be2 {[%emt 0:11:16]} Qa5 {[%emt 0:00:44]} 13. g5 {[%emt 0:02:20]} Nh5 {[%emt 0:02:24]} 14. f4 {[%emt 0:03:32]} Nc4 {[%emt 0:02:56]} 15. Bxc4 {[%emt 0:00:06]} Rxc4 {[%emt 0:00:11]} 16. f5 {[%emt 0:04:16]} Rfc8 {[%emt 0:06:13]} 17. Nb3 {[%emt 0:06:15]} Bxc3 {[%emt 0:15:20]} 18. Nxa5 {[%emt 0:13:46]} Bxd2+ {[%emt 0:00:09]} 19. Bxd2 {[%emt 0:01:41]} Rxc2+ {[%emt 0:14:00]} 20. Kb1 {[%emt 0:00:04]} gxf5 {[%emt 0:03:42]} 21. Bc3 {[%emt 0:04:35]} Re2 {[%emt 0:02:24]} 22. e5 {[%emt 0:03:10]} b6 {[%emt 0:06:23]} 23. Nb3 {[%emt 0:08:44]} Bc6 {[%emt 0:01:20]} 24. Rhe1 {[%emt 0:01:05]} Be4+ {[%emt 0:03:09]} 25. Ka1 {[%emt 0:00:22]} Rxe1 {[%emt 0:00:30]} 26. Rxe1 {[%emt 0:00:04]} d5 {[%emt 0:01:43]} 27. Nd4 {[%emt 0:05:12]} Nf4 {[%emt 0:02:28]} 28. Rf1 {[%emt 0:03:22]} Ng6 {[%emt 0:08:33]} 29. h5 {[%emt 0:06:25]} Nxe5 {[%emt 0:07:31]} 30. Nxf5 {[%emt 0:01:21]} Bxf5 {[%emt 0:01:58]} 31. Rxf5 {[%emt 0:00:17]} d4 {[%emt 0:02:55]} 32. Rxe5 {[%emt 0:00:07]} dxc3 {[%emt 0:00:08]} 33. bxc3 {[%emt 0:00:03]} Kf8 {[%emt 0:03:14]} 34. Re3 {[%emt 0:02:04]} Rc5 {[%emt 0:01:17]} 35. Rg3 {[%emt 0:00:05]} h6 {[%emt 0:02:50]} 36. gxh6 {[%emt 0:03:52]} Rxh5 {[%emt 0:00:24]} 37. Kb2 {[%emt 0:01:01]} Rxh6 {[%emt 0:00:06]} 38. Kb3 {[%emt 0:00:41]} Rd6 {[%emt 0:01:07]} 39. Kb4 {[%emt 0:02:06]} e5 {[%emt 0:00:31]} 40. Re3 {[%emt 0:00:23]} f6 {[%emt 0:00:09]} 41. Kb5 {[%emt 0:30:33]} Kf7 {[%emt 0:30:27]} 42. Ka6 {[%emt 0:00:48]} Rd7 {[%emt 0:00:04]} 43. a4 {[%emt 0:00:41]} Ke6 {[%emt 0:00:14]} 44. a5 {[%emt 0:00:21]} bxa5 {[%emt 0:00:23]} 45. Kxa5 {[%emt 0:00:20]} f5 {[%emt 0:00:42]} 46. c4 {[%emt 0:00:04]} e4 {[%emt 0:07:06]} 47. c5 {[%emt 0:00:06]} Kd5 {[%emt 0:03:50]} 48. Kb5 {[%emt 0:00:13]} Rb7+ {[%emt 0:00:23]} 49. Ka6 {[%emt 0:00:05]} Rb2 {[%emt 0:00:22]} 50. Rc3 {[%emt 0:00:25]} Kc6 {[%emt 0:00:05]} 51. Kxa7 {[%emt 0:00:12]} Rb5 {[%emt 0:00:07]} 52. Rc1 {[%emt 0:01:06]} Rxc5 {[%emt 0:00:25]} 53. Re1 {[%emt 0:00:05]} Rb5 {[%emt 0:00:06]} 54. Rd1 {[%emt 0:00:38]} e3 {[%emt 0:00:54]} 0-1